bitfinex/quotes_SOLUSD_20230402
["timestamp","ask_amount","ask_price","bid_price","bid_amount"]
[1680477910254,10.0,20.529,20.516,10.0]
[1680477912058,10.0,20.529,20.514,10.0]
[1680477915762,43.05526666,20.53,20.514,10.0]
[1680477916065,10.0,20.528,20.514,10.0]
[1680477922678,30.0,20.529,20.514,10.0]
[1680477922977,20.0,20.529,20.514,10.0]
[1680477923865,10.0,20.528,20.514,10.0]
[1680477928380,20.0,20.529,20.514,10.0]
[1680477933276,17.0,20.528,20.514,10.0]
[1680477933475,10.0,20.527,20.514,10.0]
[1680477934190,27.0,20.528,20.514,10.0]
[1680477934388,17.0,20.528,20.514,10.0]
[1680477935689,20.0,20.529,20.514,10.0]
[1680477935882,20.0,20.529,20.516,10.0]
[1680477936686,20.0,20.529,20.518,10.0]
[1680477940299,20.0,20.529,20.519,17.0]
[1680477940493,20.0,20.534,20.52,10.0]
[1680477941287,20.0,20.535,20.52,10.0]
[1680477942003,10.0,20.536,20.522,10.0]
[1680477942299,10.0,20.536,20.523,17.0]
[1680477942491,10.0,20.536,20.524,10.0]
[1680477943687,10.0,20.536,20.523,17.0]
[1680477945488,10.0,20.539,20.523,17.0]
[1680477949804,47.727226,20.54,20.523,17.0]
[1680477950598,7.29416023,20.537,20.524,10.0]
[1680477950804,10.0,20.539,20.524,10.0]
[1680477951897,17.29416023,20.539,20.524,10.0]
[1680477952286,10.0,20.537,20.524,10.0]
[1680477952690,10.0,20.535,20.522,10.0]
[1680477953505,10.0,20.535,20.519,109.6329]
[1680477953903,10.0,20.535,20.52,10.0]
[1680477956802,10.0,20.533,20.52,10.0]
[1680477957013,10.0,20.533,20.513,10.0]
[1680477957309,10.0,20.531,20.518,10.0]
[1680477957507,10.0,20.531,20.52,10.0]
[1680477958108,10.0,20.529,20.518,10.0]
[1680477959808,28.07,20.53,20.518,10.0]
[1680477960011,10.0,20.528,20.518,10.0]
[1680477960418,20.0,20.529,20.518,10.0]
[1680477962309,10.0,20.53,20.518,10.0]
[1680477962505,20.0,20.529,20.518,10.0]
[1680477963614,10.0,20.53,20.518,10.0]
[1680477963812,20.0,20.529,20.518,10.0]
[1680477964511,10.0,20.53,20.518,10.0]
[1680477964712,20.0,20.529,20.518,10.0]
[1680477965404,17.0,20.532,20.518,10.0]
[1680477965607,10.0,20.53,20.518,10.0]
[1680477965810,20.0,20.529,20.518,10.0]
[1680477966508,10.0,20.531,20.518,10.0]
[1680477966710,20.0,20.53,20.518,10.0]
[1680477967515,10.0,20.531,20.518,10.0]
[1680477967705,10.0,20.529,20.518,10.0]
[1680477968012,10.0,20.531,20.518,10.0]
[1680477968217,10.0,20.529,20.518,10.0]
[1680477968418,10.0,20.531,20.518,10.0]
[1680477968621,10.0,20.529,20.518,10.0]
[1680477968815,10.0,20.531,20.518,10.0]
[1680477969115,10.0,20.529,20.518,10.0]
[1680477969319,20.0,20.53,20.518,10.0]
[1680477969521,10.0,20.531,20.518,10.0]
[1680477969706,10.0,20.529,20.518,10.0]
[1680477971023,10.0,20.531,20.518,10.0]
[1680477971210,10.0,20.529,20.518,10.0]
[1680477971815,17.0,20.53,20.518,10.0]
[1680477972018,10.0,20.528,20.518,10.0]
[1680477972218,20.0,20.529,20.518,10.0]
[1680477973133,20.0,20.529,20.513,128.0502]
[1680477973333,10.0,20.527,20.513,128.0502]
[1680477973517,10.0,20.527,20.513,118.0502]
[1680477975030,17.0,20.528,20.513,118.0502]
[1680477975423,17.0,20.528,20.516,10.0]
[1680477976438,20.0,20.529,20.516,10.0]
[1680477976620,10.0,20.529,20.516,10.0]
[1680477977020,20.0,20.53,20.516,10.0]
[1680477986431,20.0,20.532,20.516,10.0]
[1680477986623,27.0,20.531,20.516,10.0]
[1680477986826,10.0,20.529,20.516,10.0]
[1680477988243,27.0,20.531,20.516,10.0]
[1680477988440,10.0,20.529,20.516,10.0]
[1680477990139,20.0,20.53,20.516,10.0]
[1680477992843,10.0,20.529,20.513,118.0502]
[1680477996229,20.0,20.53,20.516,10.0]
[1680477999038,10.0,20.529,20.516,9.0]
[1680478002337,10.0,20.529,20.513,118.0502]
[1680478005752,42.54,20.53,20.516,10.0]
[1680478015779,42.54,20.53,20.517,17.0]
[1680478015971,42.54,20.53,20.518,10.0]
[1680478019983,42.54,20.53,20.517,17.0]
[1680478023197,42.54,20.53,20.516,10.0]
[1680478024678,42.54,20.53,20.518,10.0]
[1680478030496,22.54,20.53,20.52,10.0]
[1680478030704,14.56455952,20.535,20.521,17.0]
[1680478030907,128.9134,20.537,20.522,10.0]
[1680478031584,118.9134,20.537,20.524,10.0]
[1680478032893,118.9134,20.537,20.522,10.0]
[1680478033082,118.9134,20.537,20.524,10.0]
[1680478034187,118.9134,20.537,20.522,10.0]
[1680478034388,118.9134,20.537,20.524,10.0]
[1680478035602,118.9134,20.537,20.523,17.0]
[1680478035902,10.0,20.536,20.523,17.0]
[1680478037100,10.0,20.536,20.52,32.45]
[1680478037292,10.0,20.536,20.51,29.74416023]
[1680478037492,10.0,20.536,20.52,10.0]
[1680478042696,10.0,20.536,20.51,22.45]
[1680478042893,22.61,20.53,20.51,22.45]
[1680478043088,30.0,20.529,20.51,22.45]
[1680478047097,30.0,20.529,20.51,28.26]
[1680478052019,30.0,20.529,20.509,34.31242651]
[1680478056321,20.0,20.529,20.509,34.31242651]
[1680478061031,20.0,20.529,20.516,27.0]
[1680478077441,10.0,20.526,20.515,114.8203]
[1680478078338,10.0,20.526,20.513,118.0502]
[1680478078544,17.0,20.525,20.513,118.0502]
[1680478078738,10.0,20.524,20.513,118.0502]
[1680478088443,17.0,20.525,20.513,118.0502]
[1680478088745,10.0,20.526,20.513,118.0502]
[1680478088943,10.0,20.524,20.513,118.0502]
[1680478089450,10.0,20.526,20.513,118.0502]
[1680478089643,10.0,20.524,20.513,118.0502]
[1680478091748,10.0,20.526,20.513,118.0502]
[1680478092046,10.0,20.524,20.513,118.0502]
[1680478093335,10.0,20.526,20.513,118.0502]
[1680478093536,10.0,20.524,20.513,118.0502]
[1680478094550,10.0,20.526,20.513,118.0502]
[1680478094853,17.0,20.527,20.514,10.0]
[1680478095034,10.0,20.527,20.514,10.0]
[1680478101480,27.0,20.528,20.514,10.0]
[1680478102055,17.0,20.528,20.514,10.0]
[1680478104352,17.0,20.528,20.513,118.0502]
[1680478104556,10.0,20.527,20.513,118.0502]
[1680478110256,27.0,20.528,20.513,118.0502]
[1680478112960,17.0,20.528,20.514,10.0]
[1680478113563,20.0,20.529,20.514,10.0]
[1680478116475,20.0,20.529,20.516,10.0]
[1680478121567,20.0,20.529,20.515,17.0]
[1680478129278,20.0,20.529,20.516,10.0]
[1680478129573,20.0,20.529,20.518,10.0]
[1680478146277,20.0,20.529,20.52,10.0]
[1680478146475,20.0,20.529,20.522,10.0]
[1680478147492,20.0,20.529,20.52,10.0]
[1680478147691,20.0,20.529,20.522,10.0]
[1680478150091,20.0,20.529,20.52,10.0]
[1680478150291,20.0,20.529,20.522,10.0]
[1680478151791,20.0,20.529,20.521,17.0]
[1680478152096,17.29416023,20.536,20.521,17.0]
[1680478152282,7.29416023,20.536,20.522,10.0]
[1680478152598,7.29416023,20.536,20.524,10.0]
[1680478152772,118.9134,20.537,20.524,10.0]
[1680478154305,118.9134,20.537,20.525,17.0]
[1680478158598,118.9134,20.537,20.524,10.0]
[1680478158799,118.9134,20.537,20.526,10.0]
[1680478159300,118.9134,20.537,20.525,17.0]
[1680478159495,118.9134,20.537,20.52,10.0]
[1680478159687,118.9134,20.537,20.51,22.62]
[1680478159688,37.0,20.536,20.513,118.0502]
[1680478159891,10.0,20.529,20.513,118.0502]
[1680478161091,10.0,20.529,20.518,10.0]
[1680478163809,28.13,20.53,20.518,10.0]
[1680478163991,10.0,20.528,20.518,10.0]
[1680478164507,20.0,20.529,20.518,10.0]
[1680478165296,20.0,20.529,20.517,17.0]
[1680478167005,20.0,20.529,20.517,10.0]
[1680478167194,20.0,20.529,20.519,10.0]
[1680478167506,20.0,20.529,20.517,10.0]
[1680478167818,20.0,20.529,20.519,10.0]
[1680478168706,20.0,20.529,20.518,17.0]
[1680478170621,20.0,20.529,20.515,116.7603]
[1680478170914,17.0,20.528,20.507,14.55787048]
[1680478171115,10.0,20.527,20.51,10.0]
[1680478171708,118.0093,20.526,20.51,10.0]
[1680478172111,10.0,20.525,20.51,10.0]
[1680478172297,10.0,20.525,20.511,17.0]
[1680478174615,118.0093,20.526,20.512,10.0]
[1680478174809,118.0093,20.526,20.514,10.0]
[1680478175710,10.0,20.525,20.512,10.0]
[1680478175906,10.0,20.525,20.514,10.0]
[1680478176536,118.0093,20.526,20.514,10.0]
[1680478176907,27.0,20.525,20.512,10.0]
[1680478177815,27.0,20.525,20.511,7.29416023]
[1680478178012,27.0,20.525,20.51,10.0]
[1680478185817,27.0,20.525,20.508,7.29416023]
[1680478186017,27.0,20.525,20.51,10.0]
[1680478189521,27.0,20.525,20.509,30.0]
[1680478190016,27.0,20.525,20.509,37.29416023]
[1680478195226,17.0,20.525,20.51,10.0]
[1680478195614,17.0,20.525,20.51,17.29416023]
[1680478196030,27.0,20.525,20.51,17.29416023]
[1680478197928,10.0,20.524,20.51,17.29416023]
[1680478198130,10.0,20.522,20.51,17.29416023]
[1680478200441,10.0,20.522,20.51,7.29416023]
[1680478201428,27.0,20.525,20.51,7.29416023]
[1680478201620,17.0,20.525,20.511,10.0]
[1680478203235,118.0093,20.526,20.511,10.0]
[1680478203429,118.0093,20.526,20.513,10.0]
[1680478203731,118.0093,20.526,20.515,10.0]
[1680478204134,118.0093,20.526,20.516,17.0]
[1680478205530,118.0093,20.526,20.515,10.0]
[1680478205731,118.0093,20.526,20.516,17.0]
[1680478207043,118.0093,20.526,20.515,10.0]
[1680478207221,118.0093,20.526,20.516,17.0]
[1680478208535,118.0093,20.526,20.515,10.0]
[1680478208720,118.0093,20.526,20.516,17.0]
[1680478210338,118.0093,20.526,20.515,10.0]
[1680478210540,118.0093,20.526,20.516,17.0]
[1680478213135,118.0093,20.526,20.513,10.0]
[1680478213442,118.0093,20.526,20.515,10.0]
[1680478213744,118.0093,20.526,20.517,10.0]
[1680478215241,118.0093,20.526,20.515,10.0]
[1680478215441,118.0093,20.526,20.517,10.0]
[1680478215832,42.5207595,20.53,20.518,17.0]
[1680478216146,14.3907595,20.53,20.519,20.0]
[1680478216324,10.0,20.535,20.521,10.0]
[1680478216930,10.0,20.535,20.52,17.0]
[1680478217732,10.0,20.535,20.519,20.0]
[1680478217946,10.0,20.533,20.518,10.0]
[1680478218129,10.0,20.531,20.519,20.0]
[1680478218442,28.26,20.53,20.517,20.0]
[1680478218623,10.0,20.529,20.517,20.0]
[1680478219943,10.0,20.529,20.517,10.0]
[1680478220143,10.0,20.529,20.518,20.0]
[1680478221449,10.0,20.529,20.518,10.0]
[1680478221633,10.0,20.529,20.519,20.0]
[1680478221834,10.0,20.529,20.517,20.0]
[1680478225749,28.26,20.53,20.517,20.0]
[1680478226857,28.26,20.53,20.519,10.0]
[1680478227054,10.0,20.531,20.519,10.0]
[1680478227254,10.0,20.529,20.519,10.0]
[1680478227446,10.0,20.529,20.518,17.0]
[1680478227746,10.0,20.529,20.52,10.0]
[1680478228147,10.0,20.529,20.519,10.0]
[1680478228457,10.0,20.529,20.518,17.0]
[1680478228651,10.0,20.529,20.52,10.0]
[1680478228857,10.0,20.529,20.518,17.0]
[1680478229058,10.0,20.529,20.52,10.0]
[1680478229264,10.0,20.529,20.519,20.0]
[1680478230967,10.0,20.529,20.516,10.0]
[1680478230968,10.0,20.529,20.518,10.0]
[1680478231265,10.0,20.529,20.519,20.0]
[1680478232050,10.0,20.529,20.518,10.0]
[1680478232246,10.0,20.529,20.519,20.0]
[1680478232659,22.61,20.53,20.519,20.0]
[1680478234969,22.61,20.53,20.518,10.0]
[1680478235155,22.61,20.53,20.519,20.0]
[1680478236967,22.61,20.53,20.518,10.0]
[1680478237164,22.61,20.53,20.519,20.0]
[1680478237369,22.61,20.53,20.52,10.0]
[1680478237972,22.61,20.53,20.519,20.0]
[1680478238567,22.61,20.53,20.518,10.0]
[1680478238773,22.61,20.53,20.52,10.0]
[1680478238956,22.61,20.53,20.518,10.0]
[1680478239268,22.61,20.53,20.519,20.0]
[1680478241974,22.61,20.53,20.518,10.0]
[1680478242158,22.61,20.53,20.519,20.0]
[1680478243169,22.61,20.53,20.521,10.0]
[1680478243565,22.61,20.53,20.52,17.0]
[1680478247267,14.29029666,20.535,20.52,17.0]
[1680478247466,22.58,20.54,20.52,24.29416023]
[1680478247773,22.58,20.54,20.521,10.0]
[1680478247975,22.58,20.54,20.523,10.0]
[1680478248355,22.58,20.54,20.524,17.0]
[1680478250269,22.58,20.54,20.523,10.0]
[1680478250476,22.58,20.54,20.524,17.0]
[1680478258778,22.58,20.54,20.523,10.0]
[1680478259085,22.58,20.54,20.525,10.0]
[1680478261083,22.58,20.54,20.524,17.0]
[1680478261281,22.58,20.54,20.525,17.0]
[1680478261586,22.58,20.54,20.526,10.0]
[1680478261767,22.58,20.54,20.525,17.0]
[1680478261963,22.58,20.54,20.525,10.0]
[1680478262282,116.4134,20.537,20.525,10.0]
[1680478264385,116.4134,20.537,20.524,17.0]
[1680478270089,123.70756023,20.537,20.519,20.0]
[1680478270387,10.0,20.535,20.518,10.0]
[1680478270589,22.61,20.53,20.519,20.0]
[1680478270782,22.61,20.53,20.52,10.0]
[1680478271174,22.61,20.53,20.518,10.0]
[1680478271388,22.61,20.53,20.519,20.0]
[1680478279402,22.61,20.53,20.521,10.0]
[1680478279600,109.57,20.536,20.522,17.0]
[1680478279905,116.4134,20.537,20.523,10.0]
[1680478280099,116.4134,20.537,20.525,10.0]
[1680478280306,116.4134,20.537,20.526,17.0]
[1680478280502,116.4134,20.537,20.527,10.0]
[1680478281505,116.4134,20.537,20.526,17.0]
[1680478286409,22.58,20.54,20.527,30.0]
[1680478286599,112.5628,20.545,20.53,22.58]
[1680478286799,112.5628,20.545,20.531,27.0]
[1680478290416,112.5628,20.545,20.531,10.0]
[1680478290912,112.5628,20.545,20.533,10.0]
[1680478291113,112.5628,20.545,20.535,10.0]
[1680478291307,112.5628,20.545,20.533,10.0]
[1680478291517,112.5628,20.545,20.535,10.0]
[1680478291815,112.5628,20.545,20.533,10.0]
[1680478292017,112.5628,20.545,20.535,10.0]
[1680478292204,112.5628,20.545,20.533,10.0]
[1680478292407,112.5628,20.545,20.534,17.0]
[1680478292920,112.5628,20.545,20.533,10.0]
[1680478293127,112.5628,20.545,20.534,17.0]
[1680478294621,112.5628,20.545,20.533,10.0]
[1680478295217,112.5628,20.545,20.531,10.0]
[1680478296016,10.0,20.544,20.528,10.0]
[1680478296208,10.0,20.544,20.531,10.0]
[1680478300713,14.96330949,20.546,20.531,10.0]
[1680478300913,10.0,20.547,20.531,10.0]
[1680478301113,10.0,20.545,20.531,10.0]
[1680478302736,10.0,20.545,20.533,10.0]
[1680478304628,24.26889012,20.547,20.533,10.0]
[1680478306515,24.26889012,20.547,20.535,10.0]
[1680478308031,14.26889012,20.547,20.535,10.0]
[1680478308209,73.5708,20.548,20.535,10.0]
[1680478309229,10.0,20.547,20.533,10.0]
[1680478309424,10.0,20.547,20.535,10.0]
[1680478311122,88.36294629,20.548,20.535,10.0]
[1680478311328,73.5708,20.548,20.537,10.0]
[1680478311732,73.5708,20.548,20.539,10.0]
[1680478314036,73.5708,20.548,20.537,10.0]
[1680478314336,73.5708,20.548,20.539,10.0]
[1680478315231,42.45363453,20.55,20.539,10.0]
[1680478315428,14.42363453,20.55,20.541,10.0]
[1680478315626,10.0,20.556,20.541,10.0]
[1680478315933,10.0,20.554,20.541,10.0]
[1680478316636,10.0,20.554,20.539,10.0]
[1680478316833,10.0,20.554,20.541,10.0]
[1680478317536,10.0,20.554,20.54,17.0]
[1680478318024,10.0,20.554,20.539,10.0]
[1680478318332,10.0,20.554,20.541,10.0]
[1680478318737,10.0,20.554,20.54,17.0]
[1680478319119,10.0,20.554,20.539,10.0]
[1680478319325,44.29416023,20.553,20.529,14.24192427]
[1680478320539,128.4734,20.548,20.533,10.0]
[1680478320735,128.4734,20.548,20.535,10.0]
[1680478325538,128.4734,20.548,20.534,17.0]
[1680478326341,118.4734,20.548,20.534,17.0]
[1680478330140,118.4734,20.548,20.535,10.0]
[1680478330350,118.4734,20.548,20.537,10.0]
[1680478330844,118.4734,20.548,20.538,17.0]
[1680478331143,118.4734,20.548,20.539,30.0]
[1680478331345,118.4734,20.548,20.54,17.0]
[1680478331641,118.4734,20.548,20.541,10.0]
[1680478331844,118.4734,20.548,20.543,10.0]
[1680478333247,118.4734,20.548,20.542,17.0]
[1680478334331,118.4734,20.548,20.537,10.0]
[1680478334538,118.4734,20.548,20.539,10.0]
[1680478334745,118.4734,20.548,20.54,17.0]
[1680478335133,118.4734,20.548,20.539,10.0]
[1680478335333,118.4734,20.548,20.527,80.85250993]
[1680478335639,118.4734,20.548,20.53,120.1874]
[1680478336031,17.0,20.547,20.53,120.1874]
[1680478336533,10.0,20.546,20.53,120.1874]
[1680478337347,10.0,20.546,20.533,10.0]
[1680478337851,10.0,20.546,20.534,17.0]
[1680478338045,10.0,20.546,20.533,10.0]
[1680478339545,10.0,20.546,20.53,120.1874]
[1680478340141,17.29416023,20.547,20.53,120.1874]
[1680478340346,10.0,20.545,20.53,120.1874]
[1680478342248,10.0,20.547,20.53,120.1874]
[1680478342450,10.0,20.547,20.533,10.0]
[1680478342649,10.0,20.547,20.535,10.0]
[1680478345847,10.0,20.547,20.533,10.0]
[1680478346046,10.0,20.547,20.535,10.0]
[1680478346251,118.4734,20.548,20.535,10.0]
[1680478346457,118.4734,20.548,20.537,10.0]
[1680478347341,118.4734,20.548,20.535,10.0]
[1680478347940,10.0,20.547,20.536,17.0]
[1680478348340,10.0,20.547,20.535,10.0]
[1680478348544,10.0,20.547,20.536,17.0]
[1680478349871,10.0,20.547,20.535,10.0]
[1680478350168,10.0,20.547,20.536,17.0]
[1680478351066,10.0,20.547,20.533,10.0]
[1680478351361,28.22,20.54,20.527,19.47148]
[1680478351546,28.22,20.54,20.528,20.0]
[1680478351746,10.0,20.539,20.528,20.0]
[1680478356157,28.22,20.54,20.528,20.0]
[1680478359360,28.22,20.54,20.527,19.47148]
[1680478359361,10.0,20.538,20.527,19.47148]
[1680478359861,17.0,20.537,20.527,19.47148]
[1680478361868,10.0,20.536,20.527,19.47148]
[1680478362747,10.0,20.536,20.521,10.0]
[1680478367766,10.0,20.536,20.517,10.0]
[1680478368071,10.0,20.534,20.519,10.0]
[1680478368448,28.22,20.53,20.519,10.0]
[1680478373153,28.22,20.53,20.518,20.0]
[1680478375665,10.0,20.529,20.514,10.0]
[1680478375867,27.0,20.529,20.514,10.0]
[1680478376362,27.0,20.529,20.509,10.0]
[1680478377369,27.0,20.529,20.519,19.47956]
[1680478380379,56.44,20.53,20.519,19.47956]
[1680478380561,20.0,20.529,20.519,19.47956]
[1680478392383,20.0,20.529,20.521,10.0]
[1680478393969,70.66724212,20.54,20.521,10.0]
[1680478394173,10.0,20.535,20.521,10.0]
[1680478395285,42.63724212,20.54,20.523,10.0]
[1680478396276,42.63724212,20.54,20.524,17.0]
[1680478396482,42.63724212,20.54,20.525,10.0]
[1680478397977,42.63724212,20.54,20.527,10.0]
[1680478398382,10.0,20.539,20.527,10.0]
[1680478398570,30.0,20.539,20.525,10.0]
[1680478398771,30.0,20.539,20.527,10.0]
[1680478399072,30.0,20.539,20.526,17.0]
[1680478399473,30.0,20.539,20.525,10.0]
[1680478399676,30.0,20.539,20.527,10.0]
[1680478400278,30.0,20.539,20.525,10.0]
[1680478400477,30.0,20.539,20.527,10.0]
[1680478400887,30.0,20.539,20.525,10.0]
[1680478401079,30.0,20.539,20.527,10.0]
[1680478402084,30.0,20.539,20.525,10.0]
[1680478402283,30.0,20.539,20.527,10.0]
[1680478404594,30.0,20.539,20.526,17.0]
[1680478407096,20.0,20.539,20.526,17.0]
[1680478414291,20.0,20.539,20.525,10.0]
[1680478414495,20.0,20.539,20.527,10.0]
[1680478416402,20.0,20.539,20.525,10.0]
[1680478416587,20.0,20.539,20.527,10.0]
[1680478419602,14.60724212,20.54,20.527,10.0]
[1680478419793,117.485,20.545,20.528,17.0]
[1680478419989,20.0,20.544,20.528,17.0]
[1680478420189,20.0,20.544,20.529,10.0]
[1680478420388,20.0,20.544,20.53,17.0]
[1680478420597,20.0,20.544,20.531,10.0]
[1680478420795,20.0,20.544,20.533,10.0]
[1680478428407,14.78193578,20.545,20.533,10.0]
[1680478428607,118.4734,20.548,20.533,10.0]
[1680478428803,118.4734,20.548,20.534,17.0]
[1680478429012,118.4734,20.548,20.535,10.0]
[1680478430296,118.4734,20.548,20.536,17.0]
[1680478430496,118.4734,20.548,20.537,10.0]
[1680478430708,118.4734,20.548,20.539,10.0]
[1680478431010,118.4734,20.548,20.54,17.0]
[1680478431611,118.4734,20.548,20.537,10.0]
[1680478431612,118.4734,20.548,20.538,17.0]
[1680478433912,118.4734,20.548,20.535,10.0]
[1680478434114,118.4734,20.548,20.537,10.0]
[1680478435212,118.4734,20.548,20.536,17.0]
[1680478436711,118.4734,20.548,20.535,10.0]
[1680478437015,118.4734,20.548,20.536,17.0]
[1680478438216,118.4734,20.548,20.535,10.0]
[1680478439326,118.4734,20.548,20.537,10.0]
[1680478441715,118.4734,20.548,20.536,17.0]
[1680478443521,118.4734,20.548,20.535,10.0]
[1680478443713,118.4734,20.548,20.537,10.0]
[1680478443914,118.4734,20.548,20.538,17.0]
[1680478457237,118.4734,20.548,20.537,10.0]
[1680478457425,118.4734,20.548,20.539,10.0]
[1680478457828,118.4734,20.548,20.54,17.0]
[1680478458839,118.4734,20.548,20.539,10.0]
[1680478459027,118.4734,20.548,20.54,17.0]
[1680478461742,118.4734,20.548,20.539,10.0]
[1680478462041,118.4734,20.548,20.541,10.0]
[1680478462242,118.4734,20.548,20.539,10.0]
[1680478462426,118.4734,20.548,20.541,10.0]
[1680478463032,118.4734,20.548,20.539,10.0]
[1680478463237,118.4734,20.548,20.541,10.0]
[1680478463440,118.4734,20.548,20.539,10.0]
[1680478463643,118.4734,20.548,20.54,17.0]
[1680478464540,118.4734,20.548,20.539,10.0]
[1680478464837,118.4734,20.548,20.54,17.0]
[1680478465625,118.4734,20.548,20.539,10.0]
[1680478465827,118.4734,20.548,20.54,17.0]
[1680478466835,118.4734,20.548,20.539,10.0]
[1680478467142,118.4734,20.548,20.54,17.0]
[1680478467942,118.4734,20.548,20.539,10.0]
[1680478468142,118.4734,20.548,20.54,17.0]
[1680478469736,118.4734,20.548,20.539,10.0]
[1680478469939,118.4734,20.548,20.54,17.0]
[1680478470944,118.4734,20.548,20.537,10.0]
[1680478470945,118.4734,20.548,20.539,10.0]
[1680478471243,118.4734,20.548,20.54,17.0]
[1680478472728,118.4734,20.548,20.539,10.0]
[1680478472930,118.4734,20.548,20.541,10.0]
[1680478473131,118.4734,20.548,20.539,10.0]
[1680478473329,118.4734,20.548,20.54,17.0]
[1680478474430,118.4734,20.548,20.539,10.0]
[1680478474630,118.4734,20.548,20.54,17.0]
[1680478477242,118.4734,20.548,20.539,10.0]
[1680478477439,118.4734,20.548,20.541,10.0]
[1680478477638,118.4734,20.548,20.539,10.0]
[1680478477841,118.4734,20.548,20.541,10.0]
[1680478478950,118.4734,20.548,20.54,17.0]
[1680478486341,118.4734,20.548,20.527,455.42030694]
[1680478486543,118.4734,20.548,20.534,17.0]
[1680478486752,118.4734,20.548,20.535,10.0]
[1680478486955,118.4734,20.548,20.537,10.0]
[1680478487352,118.4734,20.548,20.538,17.0]
[1680478488959,118.4734,20.548,20.537,10.0]
[1680478489156,118.4734,20.548,20.539,10.0]
[1680478489545,118.4734,20.548,20.537,10.0]
[1680478489746,118.4734,20.548,20.538,17.0]
[1680478492158,118.4734,20.548,20.537,10.0]
[1680478492362,118.4734,20.548,20.539,10.0]
[1680478492861,118.4734,20.548,20.538,17.0]
[1680478493568,118.4734,20.548,20.537,10.0]
[1680478493861,118.4734,20.548,20.512,146.2]
[1680478494362,118.4734,20.548,20.525,49.12030694]
[1680478494872,118.4734,20.548,20.535,10.0]
[1680478495160,10.0,20.547,20.534,17.0]
[1680478495868,10.0,20.547,20.533,17.0]
[1680478497368,10.0,20.547,20.53,22.35]
[1680478497558,10.0,20.547,20.534,10.0]
[1680478498556,10.0,20.547,20.532,10.0]
[1680478500571,118.4734,20.548,20.532,10.0]